[Event "11th Arad Open 2018"]
[Site "Arad"]
[Date "2018.08.12"]
[Round "9"]
[White "Gavrilescu, David"]
[Black "Balla, Tamas-Kristof"]
[Result "1/2-1/2"]
[ECO "B06"]
[WhiteElo "2468"]
[BlackElo "2352"]
[Annotator "ChessBase"]
[PlyCount "102"]
[EventDate "2018.08.05"]
[EventType "swiss"]
[EventCountry "ROU"]
[SourceTitle "playchess.com"]
[Source "ChessBase"]
[SourceQuality "1"]
[TimeControl "40/5400+30:1800+30"]

1. e4 {[%emt 0:00:00]} g6 {[%emt 0:13:52]} 2. d4 {[%emt 0:00:24]} Bg7 {[%emt 0:00:07]} 3. Nf3 {[%emt 0:00:55]} d6 {[%emt 0:00:13]} 4. c3 {[%emt 0:00:43]} a6 {[%emt 0:05:37]} 5. Bd3 {[%emt 0:01:09]} Nd7 {[%emt 0:00:11]} 6. O-O {[%emt 0:01:00]} e6 {[%emt 0:00:24]} 7. Re1 {[%emt 0:05:36]} Ne7 {[%emt 0:00:30]} 8. Bf4 {[%emt 0:06:43]} h6 {[%emt 0:01:32]} 9. e5 {[%emt 0:02:20]} d5 {[%emt 0:09:29]} 10. h4 {[%emt 0:14:50]} c5 {[%emt 0:02:00]} 11. Nbd2 {[%emt 0:04:25]} c4 {[%emt 0:02:40]} 12. Bc2 {[%emt 0:05:17]} b5 {[%emt 0:00:38]} 13. b3 {[%emt 0:02:28]} Qc7 {[%emt 0:03:23]} 14. a4 {[%emt 0:06:45]} Bb7 {[%emt 0:01:20]} 15. axb5 {[%emt 0:03:52]} axb5 {[%emt 0:01:02]} 16. bxc4 {[%emt 0:00:18]} bxc4 {[%emt 0:01:20]} 17. Nf1 {[%emt 0:01:33]} Nb6 {[%emt 0:11:16]} 18. N1h2 {[%emt 0:09:54]} Kd7 {[%emt 0:10:18]} 19. Rxa8 {[%emt 0:04:40]} Rxa8 {[%emt 0:02:29]} 20. Ng4 {[%emt 0:01:19]} h5 {[%emt 0:00:58]} 21. Nf6+ {[%emt 0:02:56]} Bxf6 {[%emt 0:04:34]} 22. exf6 {[%emt 0:00:10]} Qxf4 {[%emt 0:00:07]} 23. Ne5+ {[%emt 0:00:45]} Kc7 {[%emt 0:03:31]} 24. fxe7 {[%emt 0:01:25]} Qf6 {[%emt 0:00:17]} 25. e8=N+ {[%emt 0:02:07]} Rxe8 {[%emt 0:00:39]} 26. Qb1 {[%emt 0:01:13]} Qe7 {[%emt 0:03:11]} 27. Qb5 {[%emt 0:01:06]} Ra8 {[%emt 0:01:26]} 28. Rb1 {[%emt 0:04:14]} Ra6 {[%emt 0:00:23]} 29. g3 {[%emt 0:07:53]} Qf8 {[%emt 0:11:50]} 30. Nd7 {[%emt 0:00:44]} Qe8 {[%emt 0:04:05]} 31. Qc5+ {[%emt 0:02:16]} Kxd7 {[%emt 0:00:10]} 32. Rxb6 {[%emt 0:00:02]} Rxb6 {[%emt 0:00:14]} 33. Qxb6 {[%emt 0:00:05]} Qa8 {[%emt 0:01:08]} 34. Ba4+ {[%emt 0:03:00]} Bc6 {[%emt 0:01:35]} 35. Bxc6+ {[%emt 0:00:47]} Qxc6 {[%emt 0:00:07]} 36. Qb8 {[%emt 0:00:29]} Ke7 {[%emt 0:00:17]} 37. Qa7+ {[%emt 0:01:13]} Kf8 {[%emt 0:01:50]} 38. Qb8+ {[%emt 0:00:55]} Kg7 {[%emt 0:00:05]} 39. Qe5+ {[%emt 0:00:45]} Kh7 {[%emt 0:00:25]} 40. Qb8 {[%emt 0:00:00]} Kg7 {[%emt 0:00:00]} 41. Qe5+ {[%emt 0:16:50]} f6 {[%emt 0:17:30]} 42. Qb8 {[%emt 0:00:14]} Qd7 {[%emt 0:00:07]} 43. Kg2 {[%emt 0:03:24]} Qe7 {[%emt 0:00:20]} 44. Qa8 {[%emt 0:08:14]} g5 {[%emt 0:01:10]} 45. hxg5 {[%emt 0:04:13]} fxg5 {[%emt 0:00:13]} 46. Qb8 {[%emt 0:00:45]} Qf6 {[%emt 0:01:02]} 47. Qc7+ {[%emt 0:01:14]} Kh6 {[%emt 0:00:27]} 48. Qb8 {[%emt 0:00:38]} g4 {[%emt 0:00:32]} 49. Qg8 {[%emt 0:00:14]} Qf3+ {[%emt 0:05:03]} 50. Kg1 {[%emt 0:00:14]} Qf5 {[%emt 0:00:10]} 51. Qh8+ {[%emt 0:00:38]} Kg6 {[%emt 0:00:06]} 1/2-1/2

[Event "11th Arad Open 2018"]
[Site "Arad"]
[Date "2018.08.12"]
[Round "9"]
[White "Costachi, Mihnea"]
[Black "Deepan Chakkravarthy J."]
[Result "1/2-1/2"]
[ECO "E11"]
[WhiteElo "2453"]
[BlackElo "2530"]
[Annotator "ChessBase"]
[PlyCount "60"]
[EventDate "2018.08.05"]
[EventType "swiss"]
[EventCountry "ROU"]
[SourceTitle "playchess.com"]
[Source "ChessBase"]
[SourceQuality "1"]
[TimeControl "40/5400+30:1800+30"]

1. d4 {[%emt 0:00:00]} Nf6 {[%emt 0:06:28]} 2. Nf3 {[%emt 0:00:16]} e6 {[%emt 0:05:03]} 3. c4 {[%emt 0:00:04]} Bb4+ {[%emt 0:01:17]} 4. Bd2 {[%emt 0:00:52]} c5 {[%emt 0:00:08]} 5. Bxb4 {[%emt 0:01:35]} cxb4 {[%emt 0:00:16]} 6. g3 {[%emt 0:00:17]} O-O {[%emt 0:01:18]} 7. Bg2 {[%emt 0:00:53]} d6 {[%emt 0:02:47]} 8. a3 {[%emt 0:11:11]} bxa3 {[%emt 0:04:45]} 9. Nxa3 {[%emt 0:08:32]} Nc6 {[%emt 0:00:28]} 10. O-O {[%emt 0:00:08]} e5 {[%emt 0:03:12]} 11. dxe5 {[%emt 0:10:43]} dxe5 {[%emt 0:00:07]} 12. Qxd8 {[%emt 0:05:08]} Rxd8 {[%emt 0:00:25]} 13. Nb5 {[%emt 0:09:15]} Bg4 {[%emt 0:19:42]} 14. h3 {[%emt 0:04:33]} Bxf3 {[%emt 0:05:40]} 15. Bxf3 {[%emt 0:00:03]} e4 {[%emt 0:00:06]} 16. Bg2 {[%emt 0:00:02]} Rd2 {[%emt 0:00:08]} 17. Rfd1 {[%emt 0:00:18]} Rxb2 {[%emt 0:11:57]} 18. Nxa7 {[%emt 0:00:56]} h5 {[%emt 0:00:15]} 19. Nxc6 {[%emt 0:01:50]} Rxa1 {[%emt 0:00:05]} 20. Rxa1 {[%emt 0:01:02]} bxc6 {[%emt 0:00:08]} 21. g4 {[%emt 0:04:47]} hxg4 {[%emt 0:10:05]} 22. hxg4 {[%emt 0:00:03]} Rxe2 {[%emt 0:03:36]} 23. Kf1 {[%emt 0:01:44]} Rb2 {[%emt 0:00:04]} 24. g5 {[%emt 0:01:31]} Ng4 {[%emt 0:00:06]} 25. Ra8+ {[%emt 0:10:46]} Kh7 {[%emt 0:00:02]} 26. Bxe4+ {[%emt 0:00:09]} g6 {[%emt 0:00:01]} 27. f3 {[%emt 0:01:08]} Ne3+ {[%emt 0:07:07]} 28. Ke1 {[%emt 0:00:03]} Nxc4 {[%emt 0:00:18]} 29. Bxc6 {[%emt 0:00:09]} Kg7 {[%emt 0:08:36]} 30. Ra7 {[%emt 0:05:54]} Ne5 {[%emt 0:03:08]} 1/2-1/2

[Event "11th Arad Open 2018"]
[Site "Arad"]
[Date "2018.08.12"]
[Round "9"]
[White "Womacka, Mathias"]
[Black "Yordanov, Lachezar"]
[Result "1-0"]
[ECO "B19"]
[WhiteElo "2450"]
[BlackElo "2314"]
[Annotator "ChessBase"]
[PlyCount "89"]
[EventDate "2018.08.05"]
[EventType "swiss"]
[EventCountry "ROU"]
[SourceTitle "playchess.com"]
[Source "ChessBase"]
[SourceQuality "1"]
[TimeControl "40/5400+30:1800+30"]

1. e4 {[%emt 0:00:00]} c6 {[%emt 0:00:00]} 2. d4 {[%emt 0:00:00]} d5 {[%emt 0:00:00]} 3. Nd2 {[%emt 0:00:00]} dxe4 {[%emt 0:00:00]} 4. Nxe4 {[%emt 0:00:00]} Bf5 {[%emt 0:00:00]} 5. Ng3 {[%emt 0:00:00]} Bg6 {[%emt 0:00:01]} 6. h4 {[%emt 0:00:20]} h6 {[%emt 0:00:06]} 7. Nf3 {[%emt 0:00:04]} Nd7 {[%emt 0:00:04]} 8. h5 {[%emt 0:00:19]} Bh7 {[%emt 0:00:05]} 9. Bd3 {[%emt 0:00:10]} Bxd3 {[%emt 0:00:06]} 10. Qxd3 {[%emt 0:00:04]} e6 {[%emt 0:00:12]} 11. Bd2 {[%emt 0:00:25]} Ngf6 {[%emt 0:00:06]} 12. O-O-O {[%emt 0:00:18]} Be7 {[%emt 0:00:06]} 13. Kb1 {[%emt 0:00:11]} O-O {[%emt 0:00:44]} 14. Ne4 {[%emt 0:00:20]} Nxe4 {[%emt 0:00:15]} 15. Qxe4 {[%emt 0:00:07]} Nf6 {[%emt 0:00:05]} 16. Qe2 {[%emt 0:00:10]} Qd5 {[%emt 0:00:09]} 17. Ne5 {[%emt 0:01:10]} Qe4 {[%emt 0:01:39]} 18. Be3 {[%emt 0:01:00]} Nd5 {[%emt 0:01:07]} 19. Rhe1 {[%emt 0:01:50]} Nxe3 {[%emt 0:02:04]} 20. Qxe3 {[%emt 0:00:45]} Qxe3 {[%emt 0:00:09]} 21. Rxe3 {[%emt 0:00:04]} Rfd8 {[%emt 0:01:22]} 22. Red3 {[%emt 0:12:03]} Rd6 {[%emt 0:03:11]} 23. c3 {[%emt 0:26:46]} Rad8 {[%emt 0:02:37]} 24. Kc2 {[%emt 0:01:22]} Bf6 {[%emt 0:03:46]} 25. f4 {[%emt 0:01:28]} Kf8 {[%emt 0:02:55]} 26. b4 {[%emt 0:06:32]} Ke7 {[%emt 0:03:37]} 27. a4 {[%emt 0:05:39]} Rg8 {[%emt 0:02:10]} 28. Rb1 {[%emt 0:11:22]} Bxe5 {[%emt 0:01:41]} 29. fxe5 {[%emt 0:00:31]} Rdd8 {[%emt 0:00:56]} 30. b5 {[%emt 0:02:26]} g6 {[%emt 0:00:15]} 31. bxc6 {[%emt 0:01:18]} bxc6 {[%emt 0:00:01]} 32. Rg3 {[%emt 0:07:07]} Rd7 {[%emt 0:01:35]} 33. Rf1 {[%emt 0:05:45]} g5 {[%emt 0:01:47]} 34. Rgf3 {[%emt 0:00:48]} Rg7 {[%emt 0:00:06]} 35. Rf6 {[%emt 0:03:29]} Rh7 {[%emt 0:00:01]} 36. Rb1 {[%emt 0:00:58]} Rh8 {[%emt 0:01:22]} 37. a5 {[%emt 0:08:14]} c5 {[%emt 0:03:05]} 38. dxc5 {[%emt 0:00:08]} Rc8 {[%emt 0:00:05]} 39. Rbf1 {[%emt 0:00:13]} Ke8 {[%emt 0:00:38]} 40. Rxh6 {[%emt 0:00:00]} Rxc5 {[%emt 0:00:00]} 41. Rh8+ Ke7 42. h6 {[%emt 0:17:58]} Rdc7 {[%emt 0:15:11]} 43. h7 {[%emt 0:08:04]} Rxc3+ {[%emt 0:00:08]} 44. Kb2 {[%emt 0:00:04]} R3c5 {[%emt 0:10:57]} 45. Rb8 1-0

[Event "11th Arad Open 2018"]
[Site "Arad"]
[Date "2018.08.12"]
[Round "9"]
[White "Zawadzka, Jolanta"]
[Black "Banzea, Alexandru-Bogdan"]
[Result "0-1"]
[ECO "B10"]
[WhiteElo "2435"]
[BlackElo "2313"]
[Annotator "NA"]
[PlyCount "94"]
[EventDate "2018.08.05"]
[EventType "swiss"]
[EventCountry "ROU"]
[SourceTitle "playchess.com"]
[Source "ChessBase"]
[SourceQuality "1"]
[TimeControl "40/5400+30:1800+30"]

1. e4 {[%emt 0:00:00]} c6 {[%emt 0:01:05]} 2. Nc3 {[%emt 0:00:00]} d5 {[%emt 0:00:08]} 3. Nf3 {[%emt 0:00:00]} dxe4 {[%emt 0:00:20]} 4. Nxe4 {[%emt 0:00:00]} Nf6 {[%emt 0:00:01]} 5. Nxf6+ {[%emt 0:00:20]} exf6 {[%emt 0:00:04]} 6. Bc4 {[%emt 0:01:47]} Bd6 {[%emt 0:02:00]} 7. O-O {[%emt 0:00:54]} O-O {[%emt 0:00:10] LiveBook: 9 Games} 8. h3 {[%emt 0:01:45]} Re8 $11 {[%emt 0:01:51]} 9. Bb3 {[%emt 0:10:35]} Nd7 {[%emt 0:08:18]} 10. d4 {[%emt 0:01:27]} a5 {[%emt 0:06:06]} 11. c4 {[%emt 0:03:28]} Nf8 {[%emt 0:03:02]} 12. Be3 {[%emt 0:02:16]} Qc7 {[%emt 0:05:22]} 13. Qd2 {[%emt 0:08:01]} Ng6 {[%emt 0:03:30]} 14. Bc2 {[%emt 0:06:34]} f5 {[%emt 0:09:45]} 15. Qd3 {[%emt 0:09:45]} Nf4 16. Bxf4 {[%emt 0:00:05]} Bxf4 {[%emt 0:03:49]} 17. Rfe1 {[%emt 0:01:54]} Bd7 {[%emt 0:04:25]} 18. Ne5 {[%emt 0:00:33]} g6 {[%emt 0:09:47]} 19. Rad1 {[%emt 0:03:17]} Rad8 {[%emt 0:02:39]} 20. Qc3 {[%emt 0:03:26]} Bc8 {[%emt 0:05:09]} 21. Ba4 {[%emt 0:08:42]} Bh6 {[%emt 0:05:10]} 22. c5 {[%emt 0:13:55]} Be6 {[%emt 0:02:05]} 23. Bb3 {[%emt 0:00:47]} Bg7 {[%emt 0:02:30]} 24. Bxe6 {[%emt 0:00:26]} Rxe6 {[%emt 0:00:28]} 25. Nf3 {[%emt 0:04:44]} Re4 {[%emt 0:01:42]} 26. b3 {[%emt 0:02:05]} Rd5 {[%emt 0:02:40]} 27. Re3 {[%emt 0:05:15]} Qd8 {[%emt 0:01:38]} 28. Red3 {[%emt 0:01:26]} h5 {[%emt 0:02:26]} 29. Ne5 {[%emt 0:04:51]} Qc7 {[%emt 0:01:57]} 30. Nf3 {[%emt 0:02:12]} Bf6 {[%emt 0:00:34]} 31. Ne1 {[%emt 0:02:39]} Qd8 {[%emt 0:01:30]} 32. Nc2 {[%emt 0:00:10]} Kh7 {[%emt 0:02:12]} 33. f3 {[%emt 0:00:40]} Re6 {[%emt 0:00:29]} 34. Kh1 {[%emt 0:00:27]} Bg7 {[%emt 0:02:38]} 35. Re3 {[%emt 0:01:42]} Rxe3 {[%emt 0:00:21]} 36. Qxe3 {[%emt 0:00:32]} Rxc5 {[%emt 0:00:09]} 37. Qf2 {[%emt 0:01:19]} Rd5 {[%emt 0:00:28]} 38. Re1 {[%emt 0:00:28]} Bxd4 {[%emt 0:00:46]} 39. Nxd4 {[%emt 0:00:09]} Rxd4 {[%emt 0:00:05]} 40. a4 {[%emt 0:00:00]} Rd3 {[%emt 0:00:00]} 41. Qb2 {[%emt 0:21:23]} Qd5 {[%emt 0:18:33]} 42. Qf6 {[%emt 0:00:40]} Rd1 {[%emt 0:00:31]} 43. Qc3 {[%emt 0:01:14]} Rxe1+ {[%emt 0:00:17]} 44. Qxe1 {[%emt 0:00:04]} Qxb3 {[%emt 0:00:04]} 45. Qxa5 {[%emt 0:00:07]} b5 {[%emt 0:00:10]} 46. axb5 {[%emt 0:01:13]} cxb5 {[%emt 0:00:06]} 47. Kh2 {[%emt 0:00:13]} Qc4 {[%emt 0:00:08]} 0-1

[Event "11th Arad Open 2018"]
[Site "Arad"]
[Date "2018.08.12"]
[Round "9"]
[White "Filip, Lucian-Ioan"]
[Black "Tomici, Stefan"]
[Result "1/2-1/2"]
[ECO "E16"]
[WhiteElo "2426"]
[BlackElo "2306"]
[Annotator "NA"]
[PlyCount "62"]
[EventDate "2018.08.05"]
[EventType "swiss"]
[EventCountry "ROU"]
[SourceTitle "playchess.com"]
[Source "ChessBase"]
[SourceQuality "1"]
[TimeControl "40/5400+30:1800+30"]

1. d4 {[%emt 0:00:00]} e6 {[%emt 0:00:00]} 2. Nf3 {[%emt 0:00:19]} Nf6 {[%emt 0:00:26]} 3. c4 {[%emt 0:00:08]} Bb4+ {[%emt 0:00:05]} 4. Bd2 {[%emt 0:00:31]} Qe7 {[%emt 0:00:09]} 5. g3 {[%emt 0:00:11]} Nc6 {[%emt 0:00:10]} 6. Nc3 {[%emt 0:00:06]} O-O {[%emt 0:01:53]} 7. Bg2 {[%emt 0:00:07]} d6 $14 {[%emt 0:00:06] LiveBook: 151 Games} 8. O-O {[%emt 0:02:20]} a5 {[%emt 0:10:44]} 9. Rc1 {[%emt 0:27:49]} Bxc3 {[%emt 0:23:43]} 10. Bxc3 {[%emt 0:00:04]} e5 {[%emt 0:01:19]} 11. d5 {[%emt 0:00:49]} Nb8 {[%emt 0:03:59]} 12. c5 {[%emt 0:01:53]} Ne4 {[%emt 0:03:40]} 13. cxd6 {[%emt 0:00:09]} cxd6 {[%emt 0:00:06]} 14. Nd2 {[%emt 0:06:45]} Nxc3 {[%emt 0:02:46]} 15. Rxc3 {[%emt 0:00:03]} b5 {[%emt 0:19:00]} 16. Qb3 {[%emt 0:02:13]} Bd7 {[%emt 0:04:44]} 17. Rcc1 {[%emt 0:07:26]} Na6 {[%emt 0:07:16]} 18. Qe3 {[%emt 0:04:28]} f5 {[%emt 0:05:01]} 19. Nb3 {[%emt 0:05:21]} Qd8 {[%emt 0:04:06]} 20. Qd2 {[%emt 0:01:11]} b4 {[%emt 0:01:28]} 21. f4 {[%emt 0:01:26]} Qb6+ {[%emt 0:01:37]} 22. Kh1 {[%emt 0:02:52]} a4 {[%emt 0:00:20]} 23. Na1 {[%emt 0:00:21]} e4 {[%emt 0:02:53]} 24. Nc2 {[%emt 0:00:04]} Qb5 {[%emt 0:00:27]} 25. Rfd1 {[%emt 0:02:08]} Rac8 {[%emt 0:02:59]} 26. Bf1 {[%emt 0:02:03]} b3 {[%emt 0:02:01]} 27. axb3 {[%emt 0:08:06]} axb3 {[%emt 0:00:08]} 28. Nd4 {[%emt 0:16:50]} Qxd5 {[%emt 0:00:45]} 29. e3 {[%emt 0:00:05]} Qb7 {[%emt 0:00:20]} 30. Nxb3 {[%emt 0:01:43]} Qxb3 {[%emt 0:01:58]} 31. Bxa6 {[%emt 0:00:05]} Rxc1 {[%emt 0:00:12]} 1/2-1/2

[Event "11th Arad Open 2018"]
[Site "Arad"]
[Date "2018.08.12"]
[Round "9"]
[White "David, Alexandru-Vasile"]
[Black "Nastase, Robert-Paul"]
[Result "1-0"]
[ECO "D38"]
[WhiteElo "2421"]
[BlackElo "2299"]
[Annotator "NA"]
[PlyCount "51"]
[EventDate "2018.08.05"]
[EventType "swiss"]
[EventCountry "ROU"]
[SourceTitle "playchess.com"]
[Source "ChessBase"]
[SourceQuality "1"]
[TimeControl "40/5400+30:1800+30"]

1. c4 {[%emt 0:06:02]} e6 {[%emt 0:00:00]} 2. Nc3 {[%emt 0:00:16]} d5 {[%emt 0:00:00]} 3. d4 {[%emt 0:00:09]} Bb4 {[%emt 0:00:00]} 4. Nf3 {[%emt 0:00:07]} Nf6 {[%emt 0:00:00]} 5. cxd5 {[%emt 0:00:03]} exd5 {[%emt 0:00:01]} 6. Bg5 {[%emt 0:00:05]} Qd6 {[%emt 0:00:04]} 7. Nd2 {[%emt 0:00:07]} Bf5 {[%emt 0:00:19]} 8. e3 {[%emt 0:00:10]} Nbd7 {[%emt 0:01:41]} 9. Be2 {[%emt 0:00:08]} c6 {[%emt 0:00:52]} 10. a3 {[%emt 0:01:21]} Bxc3 {[%emt 0:03:14]} 11. bxc3 {[%emt 0:00:09]} O-O {[%emt 0:00:05]} 12. g4 {[%emt 0:01:52]} Be6 {[%emt 0:18:17]} 13. f4 {[%emt 0:01:48]} h6 {[%emt 0:00:04]} 14. Bh4 {[%emt 0:00:32]} Qe7 {[%emt 0:00:05]} 15. O-O {[%emt 0:14:59]} g5 {[%emt 0:09:57]} 16. fxg5 {[%emt 0:23:55]} Ne4 {[%emt 0:11:48]} 17. Nxe4 {[%emt 0:03:57]} dxe4 {[%emt 0:00:05]} 18. c4 {[%emt 0:00:04]} hxg5 {[%emt 0:02:01]} 19. Be1 {[%emt 0:00:06]} Rad8 {[%emt 0:05:17]} 20. Qb1 {[%emt 0:00:48]} f5 {[%emt 0:05:11]} 21. gxf5 {[%emt 0:04:49]} Bxf5 {[%emt 0:03:14]} 22. Qxb7 {[%emt 0:00:44]} Rb8 {[%emt 0:09:43]} 23. Qxc6 {[%emt 0:03:22]} Rf6 {[%emt 0:03:00]} 24. Qd5+ {[%emt 0:01:20]} Be6 {[%emt 0:00:03]} 25. Qxg5+ {[%emt 0:00:13]} Kh7 {[%emt 0:00:04]} 26. Rxf6 {[%emt 0:00:17]} 1-0

[Event "11th Arad Open 2018"]
[Site "Arad"]
[Date "2018.08.12"]
[Round "9"]
[White "Petrisor, Adrian-Marian"]
[Black "Gilea, Lucian"]
[Result "1-0"]
[ECO "B12"]
[WhiteElo "2416"]
[BlackElo "2279"]
[Annotator "NA RC"]
[PlyCount "37"]
[EventDate "2018.08.05"]
[EventType "swiss"]
[EventCountry "ROU"]
[SourceTitle "playchess.com"]
[Source "ChessBase"]
[SourceQuality "1"]
[TimeControl "40/5400+30:1800+30"]

1. e4 {[%emt 0:00:00]} c6 {[%emt 0:00:00]} 2. d4 {[%emt 0:00:00]} d5 {[%emt 0:00:00]} 3. e5 {[%emt 0:00:00]} Bf5 {[%emt 0:00:00]} 4. Nf3 {[%emt 0:01:43]} e6 {[%emt 0:00:08]} 5. Be2 $11 {[%emt 0:00:07] LiveBook: 5682 Games} c5 {[%emt 0:03:30]} 6. O-O {[%emt 0:02:23]} Nc6 {[%emt 0:03:31]} 7. Be3 {[%emt 0:00:14]} cxd4 {[%emt 0:08:05]} 8. Nxd4 {[%emt 0:00:19]} Nxd4 {[%emt 0:00:38]} 9. Qxd4 {[%emt 0:04:13]} Ne7 {[%emt 0:01:12]} 10. Qa4+ {[%emt 0:00:09]} Nc6 {[%emt 0:00:56]} 11. Bb5 {[%emt 0:00:45]} Qc7 {[%emt 0:02:28]} 12. c4 {[%emt 0:08:09]} dxc4 {[%emt 0:06:06]} 13. Nd2 {[%emt 0:00:40]} c3 {[%emt 0:01:59]} 14. Rac1 {[%emt 0:05:38]} c2 {[%emt 0:02:04]} 15. g4 {[%emt 0:11:12]} Bg6 {[%emt 0:01:30]} 16. f4 {[%emt 0:00:24]} O-O-O {[%emt 0:18:06]} 17. f5 {[%emt 0:04:00]} Qxe5 {[%emt 0:03:29]} 18. Nc4 {[%emt 0:00:36]} Qd5 {[%emt 0:02:35]} 19. Bxc6 {[%emt 0:02:21]} 1-0

[Event "11th Arad Open 2018"]
[Site "Arad"]
[Date "2018.08.12"]
[Round "9"]
[White "Roubalik, Jakub"]
[Black "Ciorgovean, Iustin"]
[Result "1-0"]
[ECO "A61"]
[WhiteElo "2402"]
[BlackElo "2245"]
[Annotator "NA"]
[PlyCount "55"]
[EventDate "2018.08.05"]
[EventType "swiss"]
[EventCountry "ROU"]
[SourceTitle "playchess.com"]
[Source "ChessBase"]
[SourceQuality "1"]
[TimeControl "40/5400+30:1800+30"]

1. d4 {[%emt 0:00:00]} Nf6 {[%emt 0:00:00]} 2. c4 {[%emt 0:00:00]} e6 {[%emt 0:04:53]} 3. Nf3 {[%emt 0:00:00]} c5 {[%emt 0:00:20]} 4. d5 {[%emt 0:00:11]} d6 {[%emt 0:00:14]} 5. Nc3 {[%emt 0:00:27]} exd5 {[%emt 0:00:06]} 6. cxd5 {[%emt 0:00:08]} g6 {[%emt 0:00:24]} 7. h3 {[%emt 0:00:53]} Bg7 {[%emt 0:00:14]} 8. e4 {[%emt 0:00:14]} O-O {[%emt 0:00:16]} 9. Bd3 {[%emt 0:00:11]} b5 {[%emt 0:02:44]} 10. Nxb5 {[%emt 0:00:23]} Nxe4 {[%emt 0:06:52]} 11. O-O {[%emt 0:00:12]} Re8 {[%emt 0:13:04]} 12. Re1 {[%emt 0:00:20]} a6 {[%emt 0:09:45]} 13. Nc3 {[%emt 0:00:39]} Nxc3 {[%emt 0:01:04]} 14. Rxe8+ {[%emt 0:00:05]} Qxe8 {[%emt 0:00:02]} 15. bxc3 {[%emt 0:00:07]} Bxc3 {[%emt 0:05:49]} 16. Rb1 {[%emt 0:00:30]} Nd7 {[%emt 0:09:03]} 17. Qa4 {[%emt 0:00:59]} Qd8 {[%emt 0:16:28]} 18. Bg5 {[%emt 0:15:10]} f6 {[%emt 0:03:33]} 19. Qc2 {[%emt 0:07:23]} Be5 {[%emt 0:13:21]} 20. Bh6 {[%emt 0:02:57]} f5 {[%emt 0:01:36]} 21. Ng5 {[%emt 0:18:32]} Nf8 {[%emt 0:03:03]} 22. Bc4 {[%emt 0:01:52]} Qe7 {[%emt 0:06:15]} 23. Re1 {[%emt 0:09:46]} Rb8 {[%emt 0:01:20]} 24. Bb3 {[%emt 0:09:01]} Rb4 {[%emt 0:00:48]} 25. Qxc5 {[%emt 0:10:01]} Rxb3 {[%emt 0:00:41]} 26. Qxc8 {[%emt 0:00:16]} Rb7 {[%emt 0:00:33]} 27. Ne6 {[%emt 0:01:12]} Kf7 {[%emt 0:00:29]} 28. Qxb7 {[%emt 0:01:11]} 1-0

[Event "11th Arad Open 2018"]
[Site "Arad"]
[Date "2018.08.12"]
[Round "9"]
[White "Macovei, Andrei"]
[Black "Ursan, Petru-Sebastian"]
[Result "1-0"]
[ECO "B31"]
[WhiteElo "2394"]
[BlackElo "2147"]
[Annotator "NA"]
[PlyCount "63"]
[EventDate "2018.08.05"]
[EventType "swiss"]
[EventCountry "ROU"]
[SourceTitle "playchess.com"]
[Source "ChessBase"]
[SourceQuality "1"]
[TimeControl "40/5400+30:1800+30"]

1. Nf3 {[%emt 0:01:16]} c5 {[%emt 0:00:00]} 2. e4 {[%emt 0:01:08]} Nc6 {[%emt 0:00:00]} 3. Bb5 {[%emt 0:00:06]} g6 {[%emt 0:00:07]} 4. Bxc6 {[%emt 0:00:03]} bxc6 {[%emt 0:00:06]} 5. O-O {[%emt 0:00:03]} Bg7 {[%emt 0:00:07]} 6. Re1 {[%emt 0:00:05]} Nh6 {[%emt 0:00:12]} 7. c3 {[%emt 0:00:31]} O-O {[%emt 0:03:22]} 8. h3 {[%emt 0:01:28]} f6 {[%emt 0:06:26]} 9. d4 {[%emt 0:00:19]} Qb6 {[%emt 0:05:28]} 10. b3 {[%emt 0:03:35]} cxd4 {[%emt 0:00:38]} 11. cxd4 {[%emt 0:00:06]} Nf7 {[%emt 0:00:15]} 12. Nc3 {[%emt 0:02:25]} d6 {[%emt 0:00:45]} 13. Bb2 {[%emt 0:02:46]} Bd7 {[%emt 0:02:29]} 14. Qd2 {[%emt 0:04:10]} Rad8 {[%emt 0:13:49]} 15. Rad1 {[%emt 0:03:27]} e5 {[%emt 0:03:49]} 16. Qc2 {[%emt 0:05:53]} Qa5 {[%emt 0:03:59]} 17. Ne2 {[%emt 0:17:19]} Be6 {[%emt 0:10:33]} 18. Bc3 {[%emt 0:03:22]} Qb6 {[%emt 0:01:51]} 19. Ng3 {[%emt 0:00:53]} Rfe8 {[%emt 0:09:34]} 20. Qb2 {[%emt 0:08:18]} c5 {[%emt 0:02:26]} 21. dxe5 {[%emt 0:01:38]} fxe5 {[%emt 0:01:42]} 22. Nd2 {[%emt 0:06:02]} Bh6 {[%emt 0:00:16]} 23. Qc2 {[%emt 0:02:17]} Qa6 {[%emt 0:03:52]} 24. Ngf1 {[%emt 0:01:37]} Rf8 {[%emt 0:00:37]} 25. Ne3 {[%emt 0:00:59]} Qc8 {[%emt 0:07:19]} 26. Qd3 {[%emt 0:01:57]} Bxh3 {[%emt 0:05:08]} 27. Nd5 {[%emt 0:00:49]} Kg7 {[%emt 0:02:02]} 28. Qxh3 {[%emt 0:00:09]} Qxh3 {[%emt 0:00:06]} 29. gxh3 {[%emt 0:00:01]} Ng5 {[%emt 0:00:07]} 30. Kg2 {[%emt 0:00:46]} Nxh3 {[%emt 0:02:35]} 31. Kxh3 {[%emt 0:00:43]} Rxf2 {[%emt 0:00:07]} 32. Rf1 {[%emt 0:00:11]} 1-0